bitfinex/quotes_SOLUSD_20240906
["timestamp","ask_amount","ask_price","bid_price","bid_amount"]
[1725653403879,16.4384,126.02,125.96,19.8469]
[1725653404295,16.4384,126.02,125.97,7.9382]
[1725653404515,10.38366431,126.02,125.91,24.09472694]
[1725653404673,8.9666,125.99,125.85,6.6821]
[1725653404876,8.9666,125.99,125.88,39.7177]
[1725653405106,8.9666,125.99,125.93,7.9407]
[1725653405107,52.9379,125.98,125.93,7.9407]
[1725653405396,8.9666,125.99,125.95,7.9395]
[1725653405695,8.9666,125.99,125.9,24.09472694]
[1725653405696,8.9666,125.99,125.94,19.8502]
[1725653406008,8.9666,125.99,125.95,7.9395]
[1725653406390,8.9666,125.99,125.96,7.9388]
[1725653406897,8.9666,125.99,125.98,7.9377]
[1725653409510,8.9666,125.99,125.96,19.8462]
[1725653409709,8.9666,125.99,125.96,27.785]
[1725653410909,8.9666,125.99,125.97,7.9383]
[1725653411291,8.9666,125.99,125.96,19.8462]
[1725653411706,8.9666,125.99,125.93,19.8516]
[1725653411911,8.9666,125.99,125.92,39.7068]
[1725653412413,8.9666,125.99,125.95,19.8486]
[1725653412787,8.9666,125.99,125.95,27.7878]
[1725653412986,8.9666,125.99,125.96,7.9387]
[1725653413507,8.9666,125.99,125.97,19.8455]
[1725653413682,8.9666,125.99,125.98,7.9377]
[1725653414113,22.622,126.0,125.99,7.9371]
[1725653414410,8.6885,126.02,126.0,7.9361]
[1725653415003,22.3581,126.03,126.01,7.9358]
[1725653415201,22.3581,126.03,126.02,7.9352]
[1725653415400,8.4346,126.05,126.0,19.30337694]
[1725653415710,20.6047,126.06,126.05,7.9333]
[1725653415915,10.28366431,126.08,125.98,63.79647686]
[1725653416207,8.403,126.08,126.04,7.9333]
[1725653417091,16.3344,126.08,126.03,7.9344]
[1725653417312,18.21506431,126.08,126.03,7.9344]
[1725653417618,16.3344,126.08,126.03,7.9344]
[1725653417907,45.0,126.07,126.03,7.9344]
[1725653418621,8.403,126.08,126.04,7.9339]
[1725653422023,8.403,126.08,126.07,27.7623]
[1725653422323,21.5609,126.09,126.08,7.9314]
[1725653422502,21.5609,126.09,126.07,19.8302]
[1725653422707,21.5609,126.09,126.07,27.762]
[1725653423105,21.5609,126.09,126.06,7.9325]
[1725653423919,21.5609,126.09,126.05,7.9331]
[1725653424619,31.37236431,126.09,126.04,27.7677]
[1725653424923,45.0,126.08,126.01,19.839]
[1725653425297,21.5609,126.09,126.03,19.8359]
[1725653425609,21.5609,126.09,126.05,7.9333]
[1725653426700,29.4917,126.09,126.05,7.9333]
[1725653427221,31.37236431,126.09,126.04,7.9339]
[1725653427438,45.0,126.08,126.04,7.9339]
[1725653427600,29.4917,126.09,126.04,7.9339]
[1725653428420,45.0,126.08,126.04,7.9339]
[1725653429002,21.5609,126.09,126.05,7.9332]
[1725653429221,29.4918,126.09,126.05,7.9332]
[1725653429631,21.5609,126.09,126.05,7.9332]
[1725653431224,21.5609,126.09,126.07,7.932]
[1725653431896,21.5609,126.09,126.06,7.9326]
[1725653432411,21.5609,126.09,126.05,27.766]
[1725653432616,21.5609,126.09,126.06,7.9327]
[1725653433831,29.4917,126.09,126.05,19.8328]
[1725653434027,23.44156431,126.09,126.04,7.9337]
[1725653434209,7.9315,126.08,126.03,7.9344]
[1725653434409,1.88066431,126.07,126.03,7.9344]
[1725653434723,1.88066431,126.07,126.02,19.8369]
[1725653434724,8.9735,126.07,126.01,7.9353]
[1725653435026,53.9735,126.07,126.01,7.9353]
[1725653435212,7.9329,126.06,126.01,7.9353]
[1725653436424,52.9334,126.05,126.01,7.9353]
[1725653436934,10.12846824,126.06,126.02,7.9352]
[1725653437105,7.9327,126.06,126.02,7.9352]
[1725653438647,7.9327,126.06,126.01,19.8392]
[1725653438648,7.9334,126.05,126.01,19.8392]
[1725653439329,7.9328,126.06,126.01,27.7749]
[1725653440048,21.02036084,126.07,126.02,7.9347]
[1725653440348,19.13969653,126.07,126.02,7.9347]
[1725653440549,9.81336431,126.06,126.01,27.7746]
[1725653440736,7.9334,126.05,126.01,19.8392]
[1725653440932,7.9328,126.06,126.01,27.7749]
[1725653441235,8.9735,126.07,126.03,7.9345]
[1725653441434,8.9735,126.07,126.04,7.9339]
[1725653441660,29.4919,126.09,126.05,7.9332]
[1725653441838,29.4919,126.09,126.07,7.932]
[1725653441839,21.5609,126.09,126.07,7.932]
[1725653442045,21.5609,126.09,126.06,7.9325]
[1725653442355,21.5609,126.09,126.05,27.766]
[1725653442720,21.5609,126.09,126.05,19.8329]
[1725653443046,3.03913709,126.1,126.07,19.8296]
[1725653443256,0.8212538,126.1,126.08,7.9313]
[1725653443460,0.8212538,126.1,126.07,27.7615]
[1725653444253,0.8212538,126.1,126.07,19.8296]
[1725653444559,0.8212538,126.1,126.04,39.6677]
[1725653444560,8.7515538,126.1,126.05,7.9328]
[1725653444728,7.9319,126.08,126.04,19.8339]
[1725653445832,7.9319,126.08,126.03,7.9344]
[1725653446033,54.81276431,126.07,126.02,7.935]
[1725653446351,7.9321,126.07,126.02,7.935]
[1725653447154,7.9328,126.06,126.02,7.935]
[1725653447530,7.9322,126.07,126.02,7.935]
[1725653447750,7.9316,126.08,126.03,7.9341]
[1725653447935,52.931,126.09,126.04,7.9334]
[1725653450976,7.9315,126.08,126.03,27.7702]
[1725653451459,45.0,126.09,126.03,19.8358]
[1725653451639,10.95441989,126.1,126.06,7.9326]
[1725653451957,0.8212538,126.1,126.06,7.9326]
[1725653452453,0.8212538,126.1,126.05,19.8329]
[1725653453041,0.8212538,126.1,126.06,7.9325]
[1725653453655,7.931,126.09,126.05,27.7661]
[1725653453845,45.0,126.08,126.05,27.7661]
[1725653454046,8.7518538,126.1,126.05,27.7661]
[1725653454447,45.0,126.09,126.05,27.7661]
[1725653455347,8.7518538,126.1,126.05,27.7661]
[1725653455864,7.9309,126.09,126.05,27.7661]
[1725653456842,0.8212538,126.1,126.0,39.6801]
[1725653457037,21.5273,126.08,126.0,7.936]
[1725653457235,52.9322,126.07,126.02,7.935]
[1725653457644,45.0,126.07,126.03,7.9345]
[1725653458252,21.5273,126.08,126.05,7.9329]
[1725653459952,21.5273,126.08,126.04,7.9337]
[1725653460154,21.5273,126.08,126.05,7.9332]
[1725653460463,21.5273,126.08,126.05,27.7659]
[1725653461552,21.5273,126.08,126.05,19.8328]
[1725653462142,0.8212538,126.1,126.07,7.9315]
[1725653462639,0.8212538,126.1,126.09,7.9308]
[1725653470546,0.8212538,126.1,126.08,7.9312]
[1725653471558,0.8212538,126.1,126.07,27.762]
[1725653471964,0.8212538,126.1,126.09,7.9308]
[1725653473360,0.8212538,126.1,126.08,7.9314]
[1725653474353,21.8152,126.09,126.04,19.8338]
[1725653474575,21.8152,126.09,126.05,7.933]
[1725653474957,21.8152,126.09,126.05,7.9328]
[1725653475159,21.8152,126.09,126.07,7.9318]
[1725653475354,21.8152,126.09,126.06,19.831]
[1725653475565,21.8152,126.09,126.06,27.7635]
[1725653477468,0.8212538,126.1,126.07,1.58648464]
[1725653477779,0.8212538,126.1,126.06,19.831]
[1725653477780,0.8212538,126.1,126.09,7.9308]
[1725653480580,0.8212538,126.1,126.09,9.51645089]
[1725653480888,0.8212538,126.1,126.09,7.9308]
[1725653484367,0.8212538,126.1,126.08,19.8275]
[1725653484582,20.6042,126.09,126.05,19.8322]
[1725653484784,20.6042,126.09,126.0,0.8151]
[1725653484785,16.1596,126.08,126.04,7.9339]
[1725653484964,8.2278,126.08,126.04,7.9339]
[1725653485165,8.2278,126.08,126.05,7.9332]
[1725653485578,8.2278,126.08,126.04,19.8346]
[1725653486279,16.1593,126.08,126.04,27.7681]
[1725653487094,8.2278,126.08,126.05,7.9331]
[1725653487968,8.2278,126.08,126.06,7.9322]
[1725653488178,8.2278,126.08,126.05,7.9329]
[1725653488680,16.1593,126.08,126.04,27.7685]
[1725653488997,16.1594,126.08,126.04,19.8346]
[1725653489878,9.81276431,126.07,126.04,19.8346]
[1725653490182,16.1594,126.08,126.04,19.8346]
[1725653490362,8.2278,126.08,126.04,27.7684]
[1725653490568,8.2278,126.08,126.04,19.8346]
[1725653491269,8.2278,126.08,126.05,7.9332]
[1725653491769,8.2278,126.08,126.04,27.7683]
[1725653492774,1.88066431,126.07,126.04,19.8346]
[1725653493292,8.2278,126.08,125.97,40.5057]
[1725653493293,10.10846431,126.08,126.01,19.8388]
[1725653493507,7.9343,126.04,125.99,7.9365]
[1725653493789,8.8945,126.02,125.99,7.9365]
[1725653494374,8.8945,126.02,126.0,7.9364]
[1725653494575,8.8945,126.02,125.99,7.9369]
[1725653495883,8.8945,126.02,126.0,7.9364]
[1725653496684,8.8945,126.02,126.01,7.9358]
[1725653496898,8.8945,126.02,126.0,27.7763]
[1725653497396,8.8945,126.02,125.97,39.6906]
[1725653497589,8.8945,126.02,125.97,59.5361]
[1725653497904,8.8945,126.02,126.01,7.9358]
[1725653500102,8.8945,126.02,126.0,7.9363]
[1725653500285,8.8945,126.02,126.01,7.9358]
[1725653504291,8.8945,126.02,126.0,7.9363]
[1725653509408,8.8945,126.02,125.94,1.58736608]
[1725653509605,8.8945,126.02,125.98,27.7812]
[1725653510884,8.8945,126.02,125.99,7.9371]
[1725653511187,8.8945,126.02,126.0,7.9364]
[1725653511403,8.8945,126.02,126.0,19.841]
[1725653511590,29.6317,126.05,126.0,19.841]
[1725653512000,29.6317,126.05,126.02,7.9352]
[1725653512600,29.6317,126.05,126.03,7.9344]
[1725653512904,29.6317,126.05,126.02,27.7725]
[1725653513912,29.6317,126.05,126.02,19.8375]
[1725653517608,21.2965,126.05,126.02,19.8375]
[1725653517816,29.3468,126.08,126.03,7.9341]
[1725653520182,37.2784,126.08,126.02,27.7726]
[1725653520389,7.9357,126.02,125.96,7.9389]
[1725653520613,20.0341,126.06,125.96,27.7848]
[1725653520614,8.78,126.04,125.96,27.7848]
[1725653520915,52.9348,126.03,125.96,27.7848]
[1725653521098,7.9353,126.02,125.96,27.7848]
[1725653521412,20.0341,126.01,125.97,7.9383]
[1725653522615,20.0341,126.01,125.98,7.9375]
[1725653523903,20.0341,126.01,125.99,7.9371]
[1725653524108,20.0341,126.01,125.99,7.9369]
[1725653525310,20.0341,126.01,125.95,19.8482]
[1725653526201,20.0341,126.01,125.97,19.8456]
[1725653526404,30.7762,126.04,125.98,1.58734509]
[1725653526735,30.7762,126.04,126.02,7.9352]
[1725653527896,30.7762,126.04,126.03,7.9346]
[1725653529119,21.9962,126.04,126.03,7.9346]
[1725653529298,29.8844,126.07,126.05,7.9328]
[1725653529912,29.8844,126.07,126.06,7.9327]
[1725653530318,0.8212538,126.1,126.09,7.9308]
[1725653530319,22.6159538,126.1,126.09,7.9308]
[1725653532602,0.8212538,126.1,126.09,7.9308]
[1725653542721,5.38e-05,126.1,126.09,28.81465762]
[1725653542923,5.38e-05,126.1,126.09,73.81465762]
[1725653543347,5.38e-05,126.1,126.09,28.81465762]
[1725653545499,5.38e-05,126.1,126.09,92.22932773]
[1725653547012,21.2619,126.2,126.13,39.6389]
[1725653547332,21.2619,126.2,126.19,7.9245]
[1725653547541,21.2619,126.2,126.19,9.50923949]
[1725653547831,21.2619,126.2,126.19,7.9245]
[1725653549723,21.2619,126.2,126.18,27.7377]
[1725653550434,21.2619,126.2,126.18,19.8127]
[1725653550639,21.2619,126.2,126.17,7.9256]
[1725653550826,21.2619,126.2,126.19,7.9245]
[1725653557141,21.2619,126.2,126.17,19.8137]
[1725653558426,8.5143,126.21,126.2,7.9239]
[1725653560123,0.8212538,126.23,126.21,19.8078]
[1725653560644,0.8212538,126.23,126.22,7.9226]
[1725653565028,0.8212538,126.23,126.22,9.50695121]
[1725653565243,0.8212538,126.23,126.22,7.9226]
[1725653569155,21.7487538,126.23,126.22,7.9226]
[1725653573254,66.7487538,126.23,126.18,19.8116]
[1725653573560,45.0,126.22,126.18,27.7363]
[1725653574346,1.88066431,126.21,126.18,27.7363]
[1725653574541,45.0,126.22,126.18,27.7363]
[1725653577468,21.7487538,126.23,126.19,7.9242]
[1725653578282,29.1471,126.19,126.07,39.6604]
[1725653578441,7.9256,126.18,126.13,7.9278]
[1725653578640,7.9253,126.18,126.12,27.7494]
[1725653578861,7.9253,126.18,126.12,19.8211]
[1725653578862,9.80596431,126.18,126.12,19.8211]
[1725653579065,7.9253,126.18,126.12,19.8211]
[1725653579272,7.9258,126.17,126.12,19.8211]
[1725653579448,45.0,126.16,126.12,19.8211]
[1725653579961,45.0,126.16,126.12,27.75]
[1725653580349,29.1471,126.19,126.13,7.9281]
[1725653580556,45.0,126.18,126.13,7.9281]
[1725653580759,46.88066431,126.18,126.12,19.8211]
[1725653581145,45.0,126.18,126.12,19.8211]
[1725653581359,45.0,126.18,126.14,7.9274]
[1725653581573,45.0,126.18,126.15,7.9266]
[1725653581776,29.1471,126.19,126.18,7.9251]
[1725653581971,2.70191811,126.23,126.21,7.9233]
[1725653581972,20.5234,126.22,126.21,7.9233]
[1725653582265,20.5234,126.22,126.21,27.7315]
[1725653588252,0.8212538,126.23,126.22,7.9226]
[1725653588466,0.8212538,126.23,126.22,9.50687086]
[1725653588669,0.8212538,126.23,126.22,7.9226]
[1725653592858,0.8212538,126.23,126.22,9.50671156]
[1725653593061,0.8212538,126.23,126.22,7.9226]
[1725653594059,0.8212538,126.23,126.22,9.5067738]
[1725653594262,0.8212538,126.23,126.22,7.9226]
[1725653604789,5.38e-05,126.23,126.22,31.96936525]
[1725653604969,5.38e-05,126.23,126.22,96.96936525]
[1725653605168,5.38e-05,126.23,126.22,98.25833229]
[1725653605368,5.38e-05,126.23,126.22,98.55271037]
[1725653605673,5.38e-05,126.23,126.22,53.55271037]
[1725653606185,5.38e-05,126.23,126.22,48.71802153]
[1725653606387,5.38e-05,126.23,126.21,19.8082]
[1725653606585,5.38e-05,126.23,126.22,9.50721272]
[1725653607886,5.38e-05,126.23,126.22,7.9226]
[1725653610763,5.38e-05,126.23,126.22,9.50675049]
[1725653611686,5.38e-05,126.23,126.22,7.9226]
[1725653613684,5.38e-05,126.23,126.21,19.8082]
[1725653613872,5.38e-05,126.23,126.22,7.9226]
[1725653618172,5.38e-05,126.23,126.15,3.58667563]
[1725653618480,8.5458,126.21,126.19,7.9245]
[1725653619274,8.5458,126.21,126.14,39.6356]
[1725653619880,8.5458,126.21,126.18,7.9247]
[1725653621396,8.5458,126.21,126.19,7.9245]
[1725653623274,8.5458,126.21,126.18,7.9249]
[1725653623877,8.5458,126.21,126.19,7.9243]
[1725653624086,8.5458,126.21,126.2,7.9239]
[1725653624681,8.5458,126.21,126.19,27.7354]
[1725653624915,7.9244,126.2,126.16,19.8148]
[1725653625206,19.8762,126.17,126.1,1.9874177]
[1725653625402,7.9272,126.15,126.11,7.9295]
[1725653625608,15.7156,126.16,126.12,7.9289]
[1725653625806,15.7156,126.16,126.09,39.6538]
[1725653625807,19.8762,126.13,126.09,39.6538]
[1725653626111,19.8762,126.13,126.12,27.7512]
[1725653631908,7.5191,126.12,126.09,19.8261]
[1725653633412,7.5191,126.12,126.1,7.9301]
[1725653635602,9.39976431,126.12,126.1,7.9301]
[1725653635906,7.5191,126.12,126.09,19.8261]
[1725653636091,7.5191,126.12,126.09,27.7569]
[1725653636092,45.0,126.11,126.09,27.7569]
[1725653636301,18.8343,126.1,126.06,19.8311]
[1725653636687,1.88066431,126.09,126.06,27.7636]
[1725653636890,20.71496431,126.1,126.06,27.7636]
[1725653637103,45.0,126.09,126.07,7.932]
[1725653637411,18.8343,126.1,126.07,7.932]
[1725653637611,45.0,126.09,126.07,7.932]
[1725653638410,18.8343,126.1,126.08,7.9313]
[1725653638593,18.8343,126.1,126.09,7.9308]
[1725653639895,18.8343,126.1,126.08,19.8282]
[1725653640300,18.8343,126.1,126.08,27.7596]
[1725653641396,18.8343,126.1,126.09,7.9308]
[1725653642126,18.8343,126.1,126.08,19.8282]
[1725653642496,18.8343,126.1,126.08,27.7594]
[1725653643092,18.8343,126.1,126.09,7.9308]
[1725653644216,7.5191,126.12,126.11,27.7534]
[1725653644396,18.7494,126.13,126.12,7.9289]
[1725653644817,7.6619,126.15,126.13,19.8204]
[1725653645109,19.3033,126.17,126.16,7.9264]
[1725653645801,19.3033,126.17,126.15,27.7436]
[1725653646901,19.3033,126.17,126.15,19.8167]
[1725653647427,26.9652,126.2,126.15,27.7435]
[1725653647724,45.0,126.19,126.15,27.7435]
[1725653650050,10.59704768,126.23,126.1,39.6483]
[1725653650051,10.59704768,126.23,126.19,7.9244]
[1725653650208,26.9652,126.24,126.19,7.9244]
[1725653650632,7.6671,126.22,126.14,19.8183]
[1725653650843,7.9237,126.21,126.14,19.8183]
[1725653651019,9.80466431,126.2,126.14,19.8183]
[1725653651629,7.924,126.2,126.15,7.9265]
[1725653652139,1.88066431,126.2,126.16,27.7417]
[1725653652436,46.88066431,126.2,126.14,7.9275]
[1725653652626,46.88066431,126.2,126.13,19.8197]
[1725653652627,19.3002,126.19,126.13,19.8197]
[1725653652835,19.3002,126.19,126.14,7.9271]
[1725653652836,45.0,126.18,126.14,7.9271]
[1725653653219,27.2248,126.19,126.16,7.9263]
[1725653653220,19.3002,126.19,126.16,7.9263]
[1725653655517,19.3002,126.19,126.15,19.8172]
[1725653655729,19.3002,126.19,126.15,27.7437]
[1725653657143,19.3002,126.19,126.16,7.9264]
[1725653658234,19.3002,126.19,126.16,7.9263]
[1725653659542,19.3002,126.19,126.17,7.9256]
[1725653660653,19.3002,126.19,126.16,7.9262]
[1725653664740,27.2248,126.19,126.15,27.7441]
[1725653664940,27.2249,126.19,126.14,7.9271]
[1725653665143,27.2249,126.19,126.15,7.9269]
[1725653665661,19.3002,126.19,126.16,19.8156]
[1725653666360,19.3002,126.19,126.16,27.7414]
[1725653670744,52.8875,126.18,126.13,19.8199]
[1725653670940,9.80696431,126.17,126.13,19.8199]
[1725653671147,7.9263,126.17,126.13,19.8199]
[1725653671649,1.88066431,126.16,126.11,7.9295]
[1725653671864,52.8875,126.18,126.1,19.8245]
[1725653671865,26.7688,126.14,126.1,19.8245]
[1725653672065,18.8406,126.14,126.1,19.8245]
[1725653672239,18.8406,126.14,126.07,39.6589]
[1725653672240,18.8406,126.14,126.12,19.8217]
[1725653672437,18.8406,126.14,126.12,27.7502]
[1725653672846,18.8406,126.14,126.13,7.9283]
[1725653674567,19.6436,126.17,126.15,7.927]
[1725653675268,19.6436,126.17,126.16,7.9264]
[1725653675482,19.3704,126.2,126.16,19.8154]
[1725653676263,19.3704,126.2,126.18,7.925]
[1725653676842,19.3704,126.2,126.17,7.9256]
[1725653678460,19.3704,126.2,126.18,7.9251]
[1725653678659,19.3704,126.2,126.18,19.8125]
[1725653678860,19.3704,126.2,126.19,7.9245]
[1725653681574,19.3704,126.2,126.18,19.8125]
[1725653681575,19.3704,126.2,126.18,27.7376]
[1725653682074,19.3704,126.2,126.19,7.9245]
[1725653684575,21.25106431,126.2,126.18,27.7375]
[1725653684867,19.3704,126.2,126.18,27.7375]
[1725653687060,1.88066431,126.25,126.2,19.8095]
[1725653687061,18.4588,126.24,126.2,19.8095]
[1725653687253,18.4588,126.24,126.21,7.923]
[1725653687968,26.3802,126.24,126.2,27.7332]
[1725653688149,26.3802,126.24,126.17,19.813]
[1725653688150,1.88066431,126.23,126.17,19.813]
[1725653688470,7.9229,126.22,126.17,19.813]
[1725653688677,18.978,126.19,126.14,19.8178]
[1725653689175,26.9027,126.19,126.14,19.8178]
[1725653689551,26.9027,126.19,126.15,7.9266]
[1725653690082,18.978,126.19,126.16,7.9263]
[1725653693357,18.978,126.19,126.15,7.9268]
[1725653693653,7.7094,126.17,126.14,27.745]
[1725653693867,7.7094,126.17,126.14,27.7453]
[1725653696266,9.59006431,126.17,126.14,27.7453]
[1725653696908,15.6353,126.17,126.14,19.8178]
[1725653697089,15.6353,126.17,126.13,7.9279]
[1725653697976,7.7094,126.17,126.11,19.8225]
[1725653698357,7.9268,126.16,126.12,7.9288]
[1725653698553,7.7094,126.17,126.11,19.8225]
[1725653698781,7.7094,126.17,126.13,19.8202]
[1725653699081,7.7094,126.17,126.13,27.7483]
[1725653699974,15.6353,126.17,126.13,27.7483]
[1725653700164,7.7094,126.17,126.14,7.9276]
[1725653700480,7.7094,126.17,126.13,19.8202]
[1725653701270,7.9276,126.15,126.1,19.8242]
[1725653701469,7.9295,126.12,126.07,21.81701442]
[1725653701767,21.54286431,126.15,126.07,21.81701442]
[1725653701768,9.41346431,126.14,126.07,27.7608]
[1725653701974,7.9294,126.12,126.07,27.7608]
[1725653702175,7.9296,126.11,126.07,27.7608]
[1725653702353,7.9296,126.11,126.07,19.8289]
[1725653702557,8.0798,126.11,126.04,19.8339]
[1725653702786,19.5574,126.07,126.04,19.8339]
[1725653703091,19.5574,126.07,126.04,27.7677]
[1725653703378,27.4895,126.07,126.03,7.9344]
[1725653704087,7.933,126.06,126.01,27.7748]
[1725653704419,19.5574,126.07,126.0,1.9893853]
[1725653704420,7.9341,126.04,126.0,1.9893853]
[1725653704559,7.9357,126.02,126.0,1.9893853]
[1725653704762,1.88066431,126.01,126.0,1.9893853]
[1725653705074,27.5427,126.03,126.0,1.9893853]
[1725653705276,45.0,126.02,126.0,1.9893853]
[1725653705664,45.0,126.02,125.98,19.8442]
[1725653706161,19.6076,126.03,125.98,19.8442]
[1725653706905,19.6076,126.03,125.98,27.7819]
[1725653707888,45.0,126.02,125.99,7.9371]
[1725653708093,19.6076,126.03,125.99,7.9371]
[1725653708979,19.6076,126.03,125.98,27.7818]
[1725653708980,27.5424,126.03,125.98,27.7818]
[1725653709302,27.5424,126.03,125.99,7.937]
[1725653709602,19.6076,126.03,125.99,7.937]
[1725653710685,27.5423,126.03,125.98,27.7818]
[1725653710880,45.0,126.02,125.98,27.7818]
[1725653711792,45.0,126.02,125.99,7.9368]
[1725653711975,19.6076,126.03,126.0,19.8405]
[1725653712181,19.6076,126.03,126.02,7.9352]
[1725653712487,8.0798,126.05,126.02,7.9352]
[1725653712798,19.8399,126.06,126.05,7.9333]
[1725653712997,19.8399,126.06,126.04,27.7679]
[1725653713388,19.8399,126.06,126.04,19.8341]
[1725653713588,19.8399,126.06,126.03,7.9344]
[1725653713798,19.8399,126.06,126.02,7.9352]
[1725653713985,19.8399,126.06,126.05,7.9333]
[1725653714595,27.3156,126.09,126.05,7.9333]
[1725653716293,27.3156,126.09,126.06,7.9326]
[1725653717591,45.0,126.08,126.05,27.766]
[1725653717790,35.2466,126.09,126.05,27.766]
[1725653718890,27.3156,126.09,126.06,7.9325]
[1725653719618,29.19626431,126.09,126.06,7.9325]
[1725653719993,27.3156,126.09,126.06,7.9325]
[1725653721808,19.2612,126.09,126.06,7.9325]
[1725653723009,1.88066431,126.08,126.05,27.7659]
[1725653723184,46.88066431,126.08,126.02,19.8372]
[1725653723389,7.9326,126.07,126.03,7.9344]
[1725653723603,52.9329,126.06,126.02,27.7722]
[1725653723797,52.9329,126.06,125.95,39.6952]
[1725653723798,18.689,126.05,125.99,19.8416]
[1725653723997,18.689,126.05,126.01,7.9358]
[1725653723998,26.6225,126.05,126.01,7.9358]
[1725653724186,52.934,126.04,126.0,7.9363]
[1725653726316,18.689,126.05,126.01,19.8392]
[1725653727414,18.689,126.05,126.03,7.9342]
[1725653727915,18.689,126.05,126.02,7.9351]
[1725653728916,54.81466431,126.04,126.01,19.8392]
[1725653729239,7.9348,126.03,125.99,7.9369]
[1725653729695,52.9354,126.02,125.98,27.7809]
[1725653730021,9.88196431,126.01,125.98,27.7809]
[1725653730189,45.0,126.0,125.98,19.8432]
[1725653730610,19.4659,125.99,125.96,7.9389]
[1725653730811,1.88066431,125.98,125.96,7.9389]
[1725653731314,54.81846431,125.98,125.95,19.8481]
[1725653731519,45.0,125.98,125.95,19.8481]
[1725653731898,45.0,125.98,125.96,7.939]
[1725653732097,19.4659,125.99,125.96,7.939]
[1725653732819,27.4031,125.99,125.95,27.7876]
[1725653732994,19.4659,125.99,125.95,27.7876]
[1725653733193,19.4659,125.99,125.96,7.939]
[1725653734595,27.403,125.99,125.95,27.7875]
[1725653734793,45.0,125.98,125.95,27.7875]
[1725653736021,45.0,125.98,125.96,7.9388]
[1725653736218,19.4659,125.99,125.97,7.9379]
[1725653736399,19.4659,125.99,125.98,7.9377]
[1725653736605,8.0013,126.01,125.98,7.9377]
[1725653738509,45.0,126.0,125.98,7.9377]
[1725653738820,8.0013,126.01,125.98,7.9377]
[1725653740120,45.0,126.0,125.97,19.8456]
[1725653740419,45.0,126.0,125.94,19.8497]
[1725653740599,45.0,126.0,125.96,7.9389]
[1725653740600,52.9366,126.0,125.96,7.9389]
[1725653741818,1.88066431,125.99,125.96,7.9389]
[1725653742010,7.9371,125.99,125.95,7.9394]
[1725653742218,45.0,125.98,125.95,7.9394]
[1725653742528,45.0,125.98,125.94,27.7898]
[1725653742828,45.0,125.98,125.95,7.9395]
[1725653744033,8.0013,126.01,125.97,7.9383]
[1725653744521,8.0013,126.01,125.99,7.937]
[1725653744901,19.4659,126.02,125.99,7.937]
[1725653745217,19.4659,126.02,125.98,27.7815]
[1725653746227,19.4659,126.02,125.99,7.937]
[1725653753214,45.0,126.01,125.99,7.937]
[1725653755039,19.4659,126.02,125.99,7.937]
[1725653758335,27.4012,126.02,125.98,27.7814]
[1725653759818,45.0,126.01,125.98,27.7814]
[1725653760008,45.0,126.01,125.95,19.8482]
[1725653760213,7.1102,126.0,125.95,19.8482]
[1725653760730,45.0,126.01,125.98,7.9376]
[1725653761733,45.0,126.01,125.97,27.7838]
[1725653761734,52.9359,126.01,125.97,27.7838]
[1725653762042,7.9365,126.0,125.97,19.8457]
[1725653762219,7.9365,126.0,125.91,0.8212]
[1725653762220,7.1579,125.98,125.91,0.8212]
[1725653762425,16.8907,125.96,125.91,0.8212]
[1725653762642,16.8907,125.96,125.93,7.9408]
[1725653762643,1.88066431,125.95,125.93,7.9408]
[1725653763014,1.88066431,125.95,125.91,20.6754]
[1725653763015,54.82076431,125.95,125.91,20.6754]